[Event "Titled Tuesday Blitz November 14 Early 2023"]
[White "Le, Tuan Minh"]
[Black "Rozman, Levy"]
[WhiteFideId "12401153"]
[BlackFideId "2039877"]
[WhiteElo "3044"]
[BlackElo "2704"]
[Result "1/2-1/2"]
[Round "7"]
[TimeControl "180+1"]
[Date "2023.11.14"]
[WhiteClock "0:00:06"]
[BlackClock "0:00:03"]
[Board "31"]

1. d4 {[%clk 0:03:00]}  g6 {[%clk 0:02:51]} 2. e4 {[%clk 0:03:00]}  Bg7 {[%clk 0:02:50]} 3. Bc4 {[%clk 0:03:01]}  Nc6 {[%clk 0:02:49]} 4. Nf3 {[%clk 0:03:00]}  d6 {[%clk 0:02:48]} 5. O-O {[%clk 0:02:58]}  Nf6 {[%clk 0:02:42]} 6. Qe2 {[%clk 0:02:42]}  O-O {[%clk 0:02:38]} 7. e5 {[%clk 0:02:39]}  dxe5 {[%clk 0:02:34]} 8. dxe5 {[%clk 0:02:40]}  Nd5 {[%clk 0:02:33]} 9. Rd1 {[%clk 0:02:35]}  e6 {[%clk 0:02:33]} 10. Bg5 {[%clk 0:02:33]}  Qe8 {[%clk 0:02:23]} 11. Nbd2 {[%clk 0:02:22]}  h6 {[%clk 0:02:20]} 12. Bh4 {[%clk 0:02:22]}  Na5 {[%clk 0:02:14]} 13. Bb5 {[%clk 0:02:15]}  Nf4 {[%clk 0:02:02]} 14. Qf1 {[%clk 0:02:12]}  c6 {[%clk 0:01:58]} 15. Ba4 {[%clk 0:02:10]}  b5 {[%clk 0:01:53]} 16. Bb3 {[%clk 0:02:10]}  c5 {[%clk 0:01:45]} 17. c4 {[%clk 0:01:58]}  bxc4 {[%clk 0:01:35]} 18. Bxc4 {[%clk 0:01:53]}  Bb7 {[%clk 0:01:25]} 19. Bg3 {[%clk 0:01:53]}  Nh5 {[%clk 0:01:18]} 20. Rac1 {[%clk 0:01:51]}  Nxg3 {[%clk 0:01:16]} 21. hxg3 {[%clk 0:01:52]}  Nxc4 {[%clk 0:01:06]} 22. Nxc4 {[%clk 0:01:49]}  Qa4 {[%clk 0:01:03]} 23. b3 {[%clk 0:01:15]}  Qxa2 {[%clk 0:00:51]} 24. Ra1 {[%clk 0:01:12]}  Qc2 {[%clk 0:00:50]} 25. Rd2 {[%clk 0:01:08]}  Qc3 {[%clk 0:00:48]} 26. Rc1 {[%clk 0:01:04]}  Qb4 {[%clk 0:00:47]} 27. Ra2 {[%clk 0:00:55]}  Bxf3 {[%clk 0:00:43]} 28. gxf3 {[%clk 0:00:55]}  Qxb3 {[%clk 0:00:41]} 29. Ra3 {[%clk 0:00:50]}  Qb7 {[%clk 0:00:36]} 30. f4 {[%clk 0:00:51]}  h5 {[%clk 0:00:24]} 31. Nd6 {[%clk 0:00:50]}  Qd5 {[%clk 0:00:22]} 32. Rd3 {[%clk 0:00:50]}  Qc6 {[%clk 0:00:21]} 33. Rdc3 {[%clk 0:00:51]}  Qa4 {[%clk 0:00:18]} 34. Rxc5 {[%clk 0:00:48]}  a5 {[%clk 0:00:18]} 35. R5c4 {[%clk 0:00:46]}  Qb3 {[%clk 0:00:18]} 36. R1c3 {[%clk 0:00:46]}  Qb6 {[%clk 0:00:17]} 37. Ra4 {[%clk 0:00:44]}  Rfd8 {[%clk 0:00:13]} 38. Rac4 {[%clk 0:00:30]}  Bf8 {[%clk 0:00:11]} 39. Rc6 {[%clk 0:00:29]}  Qd4 {[%clk 0:00:11]} 40. R3c4 {[%clk 0:00:28]}  Qd5 {[%clk 0:00:09]} 41. Ne4 {[%clk 0:00:28]}  Bg7 {[%clk 0:00:02]} 42. Kg2 {[%clk 0:00:23]}  a4 {[%clk 0:00:02]} 43. R6c5 {[%clk 0:00:24]}  Qb7 {[%clk 0:00:02]} 44. Rc7 {[%clk 0:00:23]}  Qd5 {[%clk 0:00:03]} 45. Qe2 {[%clk 0:00:21]}  a3 {[%clk 0:00:03]} 46. R4c5 {[%clk 0:00:15]}  Qd3 {[%clk 0:00:02]} 47. Qxd3 {[%clk 0:00:13]}  Rxd3 {[%clk 0:00:03]} 48. Rc8+ {[%clk 0:00:14]}  Rd8 {[%clk 0:00:02]} 49. Rxd8+ {[%clk 0:00:14]}  Rxd8 {[%clk 0:00:03]} 50. Ra5 {[%clk 0:00:15]}  Bf8 {[%clk 0:00:04]} 51. Ra7 {[%clk 0:00:15]}  Rb8 {[%clk 0:00:03]} 52. Nf6+ {[%clk 0:00:09]}  Kg7 {[%clk 0:00:03]} 53. Nd7 {[%clk 0:00:09]}  Rb3 {[%clk 0:00:02]} 54. Kf1 {[%clk 0:00:09]}  Bb4 {[%clk 0:00:02]} 55. Nf6 {[%clk 0:00:07]}  Bf8 {[%clk 0:00:01]} 56. Ne8+ {[%clk 0:00:07]}  Kg8 {[%clk 0:00:02]} 57. Nd6 {[%clk 0:00:08]}  Bxd6 {[%clk 0:00:02]} 58. exd6 {[%clk 0:00:09]}  Rd3 {[%clk 0:00:02]} 59. d7 {[%clk 0:00:09]}  Kf8 {[%clk 0:00:02]} 60. Ke2 {[%clk 0:00:08]}  Rd6 {[%clk 0:00:02]} 61. Ke3 {[%clk 0:00:07]}  Ke7 {[%clk 0:00:03]} 62. d8=Q+ {[%clk 0:00:05]}  Kxd8 {[%clk 0:00:03]} 63. Rxa3 {[%clk 0:00:06]}  Ke7 {[%clk 0:00:03]} 64. Ke4 {[%clk 0:00:07]}  Rd7 {[%clk 0:00:02]} 65. Ra6 {[%clk 0:00:07]}  Rb7 {[%clk 0:00:03]} 66. Ra4 {[%clk 0:00:07]}  Kf6 {[%clk 0:00:03]} 67. Kf3 {[%clk 0:00:07]}  Rd7 {[%clk 0:00:03]} 68. Ra5 {[%clk 0:00:08]}  Rd5 {[%clk 0:00:03]} 69. Ra4 {[%clk 0:00:09]}  Rc5 {[%clk 0:00:03]} 70. Ra3 {[%clk 0:00:09]}  Rb5 {[%clk 0:00:04]} 71. Rc3 {[%clk 0:00:09]}  Rb4 {[%clk 0:00:04]} 72. Ra3 {[%clk 0:00:09]}  Rb5 {[%clk 0:00:04]} 73. Ra4 {[%clk 0:00:10]}  Rb6 {[%clk 0:00:03]} 74. Ra5 {[%clk 0:00:10]}  Rd6 {[%clk 0:00:03]} 75. Ke4 {[%clk 0:00:10]}  Rc6 {[%clk 0:00:03]} 76. Ke3 {[%clk 0:00:10]}  Rc3+ {[%clk 0:00:03]} 77. Ke2 {[%clk 0:00:11]}  Rc2+ {[%clk 0:00:04]} 78. Kf3 {[%clk 0:00:11]}  Rc8 {[%clk 0:00:04]} 79. Ra3 {[%clk 0:00:11]}  Rh8 {[%clk 0:00:05]} 80. Kg2 {[%clk 0:00:11]}  Re8 {[%clk 0:00:05]} 81. Re3 {[%clk 0:00:10]}  e5 {[%clk 0:00:05]} 82. Re1 {[%clk 0:00:10]}  Re6 {[%clk 0:00:04]} 83. fxe5+ {[%clk 0:00:11]}  Rxe5 {[%clk 0:00:05]} 84. Ra1 {[%clk 0:00:11]}  Re6 {[%clk 0:00:05]} 85. Ra5 {[%clk 0:00:12]}  Re5 {[%clk 0:00:05]} 86. Ra4 {[%clk 0:00:12]}  Rc5 {[%clk 0:00:05]} 87. Kf3 {[%clk 0:00:13]}  Kg5 {[%clk 0:00:05]} 88. Ra7 {[%clk 0:00:13]}  f5 {[%clk 0:00:04]} 89. Ra4 {[%clk 0:00:13]}  Rc3+ {[%clk 0:00:04]} 90. Kg2 {[%clk 0:00:14]}  Rc6 {[%clk 0:00:04]} 91. Kh3 {[%clk 0:00:14]}  Re6 {[%clk 0:00:05]} 92. Ra5 {[%clk 0:00:12]}  Re2 {[%clk 0:00:04]} 93. f4+ {[%clk 0:00:11]}  Kh6 {[%clk 0:00:04]} 94. Ra6 {[%clk 0:00:12]}  Re3 {[%clk 0:00:03]} 95. Kg2 {[%clk 0:00:12]}  Re2+ {[%clk 0:00:04]} 96. Kf3 {[%clk 0:00:12]}  Re7 {[%clk 0:00:04]} 97. Rb6 {[%clk 0:00:13]}  Kg7 {[%clk 0:00:04]} 98. Ra6 {[%clk 0:00:13]}  Rc7 {[%clk 0:00:04]} 99. Rb6 {[%clk 0:00:14]}  Kh6 {[%clk 0:00:05]} 100. Ra6 {[%clk 0:00:14]}  Rc3+ {[%clk 0:00:05]} 101. Kg2 {[%clk 0:00:14]}  h4 {[%clk 0:00:03]} 102. gxh4 {[%clk 0:00:14]}  Kh5 {[%clk 0:00:04]} 103. Kf2 {[%clk 0:00:15]}  Rb3 {[%clk 0:00:04]} 104. Rc6 {[%clk 0:00:14]}  Rh3 {[%clk 0:00:04]} 105. Ra6 {[%clk 0:00:13]}  Rxh4 {[%clk 0:00:04]} 106. Kg3 {[%clk 0:00:14]}  Rg4+ {[%clk 0:00:05]} 107. Kf3 {[%clk 0:00:14]}  Kh4 {[%clk 0:00:05]} 108. Rb6 {[%clk 0:00:11]}  Rg3+ {[%clk 0:00:05]} 109. Kf2 {[%clk 0:00:11]}  Kh3 {[%clk 0:00:03]} 110. Ra6 {[%clk 0:00:08]}  Rg4 {[%clk 0:00:02]} 111. Kf3 {[%clk 0:00:09]}  Kh2 {[%clk 0:00:02]} 112. Ra2+ {[%clk 0:00:07]}  Kg1 {[%clk 0:00:02]} 113. Rb2 {[%clk 0:00:04]}  Kh1 {[%clk 0:00:01]} 114. Rc2 {[%clk 0:00:04]}  Kg1 {[%clk 0:00:01]} 115. Rd2 {[%clk 0:00:05]}  Kh1 {[%clk 0:00:02]} 116. Ra2 {[%clk 0:00:05]}  Kg1 {[%clk 0:00:02]} 117. Rb2 {[%clk 0:00:06]}  Kh1 {[%clk 0:00:02]} 118. Ra2 {[%clk 0:00:06]}  Rh4 {[%clk 0:00:03]} 119. Kg3 {[%clk 0:00:05]}  Rg4+ {[%clk 0:00:03]} 120. Kf3 {[%clk 0:00:06]} 1/2-1/2


[Site "https://www.chess.com"]

[Event "Titled Tuesday Blitz November 14 Early 2023"]
[White "Timerkhanov, Alexander"]
[Black "Yeletsky, Ivan"]
[WhiteFideId "24177938"]
[BlackFideId "24180327"]
[WhiteElo "2698"]
[BlackElo "2902"]
[Result "0-1"]
[Round "7"]
[TimeControl "180+1"]
[Date "2023.11.14"]
[WhiteClock "0:00:45"]
[BlackClock "0:00:30"]
[Board "33"]

1. d4 {[%clk 0:03:00]}  Nf6 {[%clk 0:02:58]} 2. Bg5 {[%clk 0:03:01]}  e6 {[%clk 0:02:57]} 3. Nd2 {[%clk 0:03:01]}  h6 {[%clk 0:02:57]} 4. Bh4 {[%clk 0:03:00]}  d6 {[%clk 0:02:55]} 5. e4 {[%clk 0:03:00]}  Nbd7 {[%clk 0:02:53]} 6. Ngf3 {[%clk 0:02:54]}  g5 {[%clk 0:02:52]} 7. Bg3 {[%clk 0:02:53]}  Nh5 {[%clk 0:02:53]} 8. Bd3 {[%clk 0:02:51]}  Bg7 {[%clk 0:02:52]} 9. Qe2 {[%clk 0:02:49]}  g4 {[%clk 0:02:43]} 10. Ng1 {[%clk 0:02:48]}  Bxd4 {[%clk 0:02:28]} 11. c3 {[%clk 0:02:45]}  Nxg3 {[%clk 0:02:25]} 12. hxg3 {[%clk 0:02:44]}  Bb6 {[%clk 0:02:25]} 13. Qxg4 {[%clk 0:02:44]}  Ne5 {[%clk 0:02:24]} 14. Qe2 {[%clk 0:02:44]}  Qf6 {[%clk 0:02:19]} 15. Ngf3 {[%clk 0:02:43]}  Ng4 {[%clk 0:02:16]} 16. Rf1 {[%clk 0:02:43]}  h5 {[%clk 0:02:11]} 17. Nc4 {[%clk 0:02:42]}  Bd7 {[%clk 0:02:09]} 18. Nxb6 {[%clk 0:02:29]}  axb6 {[%clk 0:02:10]} 19. a3 {[%clk 0:02:27]}  Ke7 {[%clk 0:02:03]} 20. O-O-O {[%clk 0:02:10]}  Ba4 {[%clk 0:01:39]} 21. Bc2 {[%clk 0:02:07]}  Bc6 {[%clk 0:01:27]} 22. Nd4 {[%clk 0:02:04]}  Ra5 {[%clk 0:01:18]} 23. f4 {[%clk 0:01:57]}  Bd7 {[%clk 0:01:09]} 24. Kb1 {[%clk 0:01:54]}  Kd8 {[%clk 0:01:09]} 25. Rh1 {[%clk 0:01:44]}  Qg7 {[%clk 0:01:03]} 26. Nf3 {[%clk 0:01:40]}  Kc8 {[%clk 0:01:00]} 27. Ng5 {[%clk 0:01:21]}  Kb8 {[%clk 0:00:51]} 28. e5 {[%clk 0:01:10]}  Nxe5 {[%clk 0:00:44]} 29. Rxh5 {[%clk 0:01:09]}  Rxh5 {[%clk 0:00:33]} 30. Qxh5 {[%clk 0:01:10]}  Nc4 {[%clk 0:00:33]} 31. Qxf7 {[%clk 0:00:45]}  Rxg5 {[%clk 0:00:30]} 0-1


[Site "https://www.chess.com"]

[Event "Titled Tuesday Blitz November 14 Early 2023"]
[White "Rustemov, Alexander"]
[Black "Mladenovic, Stefan"]
[WhiteFideId "4119002"]
[BlackFideId "942227"]
[WhiteElo "2900"]
[BlackElo "2690"]
[Result "1-0"]
[Round "7"]
[TimeControl "180+1"]
[Date "2023.11.14"]
[WhiteClock "0:01:49"]
[BlackClock "0:01:14"]
[Board "34"]

1. d4 {[%clk 0:03:00]}  Nf6 {[%clk 0:02:59]} 2. c4 {[%clk 0:03:01]}  e6 {[%clk 0:02:59]} 3. Nf3 {[%clk 0:03:02]}  b6 {[%clk 0:02:59]} 4. a3 {[%clk 0:03:02]}  Bb7 {[%clk 0:02:59]} 5. Nc3 {[%clk 0:03:02]}  d5 {[%clk 0:03:00]} 6. Bg5 {[%clk 0:03:03]}  dxc4 {[%clk 0:02:59]} 7. e4 {[%clk 0:03:01]}  h6 {[%clk 0:02:52]} 8. Bxf6 {[%clk 0:02:59]}  Qxf6 {[%clk 0:02:46]} 9. Bxc4 {[%clk 0:03:00]}  Nd7 {[%clk 0:02:45]} 10. O-O {[%clk 0:02:55]}  a6 {[%clk 0:02:44]} 11. Qe2 {[%clk 0:02:45]}  Qd8 {[%clk 0:02:43]} 12. Rad1 {[%clk 0:02:38]}  Be7 {[%clk 0:02:44]} 13. e5 {[%clk 0:02:29]}  Qc8 {[%clk 0:02:39]} 14. d5 {[%clk 0:02:28]}  Nf8 {[%clk 0:02:26]} 15. Nd4 {[%clk 0:02:26]}  Bc5 {[%clk 0:02:03]} 16. dxe6 {[%clk 0:02:22]}  fxe6 {[%clk 0:02:04]} 17. Qg4 {[%clk 0:02:15]}  Bxd4 {[%clk 0:02:03]} 18. Rxd4 {[%clk 0:02:15]}  g5 {[%clk 0:01:47]} 19. f4 {[%clk 0:01:59]}  Rg8 {[%clk 0:01:45]} 20. Qh5+ {[%clk 0:01:56]}  Ke7 {[%clk 0:01:40]} 21. f5 {[%clk 0:01:51]}  Nh7 {[%clk 0:01:16]} 22. f6+ {[%clk 0:01:49]}  Kf8 {[%clk 0:01:14]} 23. Qxh6+ {[%clk 0:01:49]} 1-0


[Site "https://www.chess.com"]

[Event "Titled Tuesday Blitz November 14 Early 2023"]
[White "Mahdavi, Reza"]
[Black "Akhmedinov, Satbek"]
[WhiteFideId "12595926"]
[BlackFideId "13714287"]
[WhiteElo "2881"]
[BlackElo "2688"]
[Result "1-0"]
[Round "7"]
[TimeControl "180+1"]
[Date "2023.11.14"]
[WhiteClock "0:01:35"]
[BlackClock "0:00:17"]
[Board "35"]

1. e4 {[%clk 0:03:00]}  c5 {[%clk 0:03:00]} 2. Nf3 {[%clk 0:03:01]}  Nc6 {[%clk 0:03:00]} 3. d4 {[%clk 0:03:01]}  cxd4 {[%clk 0:03:01]} 4. Nxd4 {[%clk 0:03:02]}  Nf6 {[%clk 0:03:02]} 5. Nc3 {[%clk 0:03:02]}  e5 {[%clk 0:03:02]} 6. Ndb5 {[%clk 0:03:02]}  d6 {[%clk 0:03:03]} 7. Nd5 {[%clk 0:03:03]}  Nxd5 {[%clk 0:03:03]} 8. exd5 {[%clk 0:03:04]}  Nb8 {[%clk 0:03:04]} 9. Qf3 {[%clk 0:03:04]}  a6 {[%clk 0:02:59]} 10. Qa3 {[%clk 0:03:02]}  Be7 {[%clk 0:02:54]} 11. Bg5 {[%clk 0:03:03]}  f6 {[%clk 0:02:37]} 12. Be3 {[%clk 0:03:03]}  O-O {[%clk 0:02:37]} 13. O-O-O {[%clk 0:03:01]}  Bg4 {[%clk 0:02:35]} 14. f3 {[%clk 0:02:59]}  Bh5 {[%clk 0:02:31]} 15. g4 {[%clk 0:02:55]}  Be8 {[%clk 0:02:30]} 16. Nc3 {[%clk 0:02:55]}  Nd7 {[%clk 0:02:29]} 17. Ne4 {[%clk 0:02:53]}  Nb6 {[%clk 0:02:27]} 18. Qb3 {[%clk 0:02:51]}  Na4 {[%clk 0:02:27]} 19. Bd3 {[%clk 0:02:36]}  b5 {[%clk 0:02:24]} 20. h4 {[%clk 0:02:36]}  Kh8 {[%clk 0:02:08]} 21. h5 {[%clk 0:02:35]}  h6 {[%clk 0:02:06]} 22. Kb1 {[%clk 0:02:33]}  Bf7 {[%clk 0:02:01]} 23. c3 {[%clk 0:02:32]}  Qc7 {[%clk 0:01:55]} 24. Ka1 {[%clk 0:02:32]}  Nb6 {[%clk 0:01:49]} 25. Bb1 {[%clk 0:02:31]}  Nc4 {[%clk 0:01:47]} 26. Bc1 {[%clk 0:02:31]}  Bg8 {[%clk 0:01:33]} 27. Qc2 {[%clk 0:02:29]}  Bh7 {[%clk 0:01:30]} 28. Qe2 {[%clk 0:02:13]}  a5 {[%clk 0:01:29]} 29. Ng3 {[%clk 0:02:12]}  Bxb1 {[%clk 0:01:21]} 30. Kxb1 {[%clk 0:02:13]}  Rfb8 {[%clk 0:01:21]} 31. Nf5 {[%clk 0:02:10]}  Bf8 {[%clk 0:01:22]} 32. f4 {[%clk 0:02:05]}  b4 {[%clk 0:01:20]} 33. cxb4 {[%clk 0:02:05]}  Rxb4 {[%clk 0:01:20]} 34. Rh3 {[%clk 0:02:04]}  Rab8 {[%clk 0:01:17]} 35. fxe5 {[%clk 0:01:56]}  dxe5 {[%clk 0:01:03]} 36. Rc3 {[%clk 0:01:55]}  a4 {[%clk 0:00:48]} 37. Qc2 {[%clk 0:01:47]}  Nxb2 {[%clk 0:00:40]} 38. Rxc7 {[%clk 0:01:41]}  Nxd1+ {[%clk 0:00:28]} 39. Ka1 {[%clk 0:01:41]}  Nf2 {[%clk 0:00:21]} 40. Rc8 {[%clk 0:01:35]}  Rxc8 {[%clk 0:00:17]} 41. Qxc8 {[%clk 0:01:36]}  Kg8 {[%clk 0:00:18]} 42. Ne7+ {[%clk 0:01:35]}  Kf7 {[%clk 0:00:17]} 43. Qe6+ {[%clk 0:01:35]} 1-0


[Site "https://www.chess.com"]

[Event "Titled Tuesday Blitz November 14 Early 2023"]
[White "Cherniaiev, Tykhon"]
[Black "Skvortsov, Andrei"]
[WhiteFideId "14182360"]
[BlackFideId "24108600"]
[WhiteElo "2831"]
[BlackElo "2668"]
[Result "1-0"]
[Round "7"]
[TimeControl "180+1"]
[Date "2023.11.14"]
[WhiteClock "0:00:09"]
[BlackClock "0:00:06"]
[Board "39"]

1. Nf3 {[%clk 0:03:00]}  d6 {[%clk 0:02:54]} 2. d4 {[%clk 0:03:00]}  g6 {[%clk 0:02:53]} 3. e4 {[%clk 0:03:00]}  Bg7 {[%clk 0:02:52]} 4. Bd3 {[%clk 0:03:00]}  Nd7 {[%clk 0:02:51]} 5. O-O {[%clk 0:03:00]}  e5 {[%clk 0:02:51]} 6. c3 {[%clk 0:03:00]}  h6 {[%clk 0:02:50]} 7. b3 {[%clk 0:03:00]}  c6 {[%clk 0:02:49]} 8. Ba3 {[%clk 0:02:59]}  Nf8 {[%clk 0:02:43]} 9. Nbd2 {[%clk 0:02:58]}  Ne6 {[%clk 0:02:42]} 10. Nc4 {[%clk 0:02:53]}  c5 {[%clk 0:02:28]} 11. dxe5 {[%clk 0:02:49]}  dxe5 {[%clk 0:02:27]} 12. Ncxe5 {[%clk 0:02:50]}  a6 {[%clk 0:02:17]} 13. b4 {[%clk 0:02:32]}  Qc7 {[%clk 0:02:16]} 14. Ng4 {[%clk 0:01:21]}  Nf4 {[%clk 0:02:06]} 15. Ne3 {[%clk 0:01:18]}  Ne7 {[%clk 0:01:48]} 16. bxc5 {[%clk 0:01:12]}  Bxc3 {[%clk 0:01:39]} 17. Nc4 {[%clk 0:01:04]}  Nxd3 {[%clk 0:01:17]} 18. Nd6+ {[%clk 0:01:02]}  Kf8 {[%clk 0:01:16]} 19. Qxd3 {[%clk 0:01:01]}  Bxa1 {[%clk 0:01:16]} 20. Rxa1 {[%clk 0:01:00]}  Nc6 {[%clk 0:01:09]} 21. Bb2 {[%clk 0:00:54]}  Rh7 {[%clk 0:01:08]} 22. h4 {[%clk 0:00:24]}  Be6 {[%clk 0:01:01]} 23. h5 {[%clk 0:00:24]}  gxh5 {[%clk 0:00:47]} 24. Bf6 {[%clk 0:00:20]}  Ne7 {[%clk 0:00:43]} 25. Qe3 {[%clk 0:00:17]}  b6 {[%clk 0:00:35]} 26. Bd4 {[%clk 0:00:10]}  bxc5 {[%clk 0:00:33]} 27. Bxc5 {[%clk 0:00:11]}  Kg8 {[%clk 0:00:33]} 28. Rd1 {[%clk 0:00:05]}  Bg4 {[%clk 0:00:28]} 29. Rc1 {[%clk 0:00:05]}  Ng6 {[%clk 0:00:23]} 30. Nd4 {[%clk 0:00:04]}  Qd7 {[%clk 0:00:23]} 31. N4f5 {[%clk 0:00:04]}  Qe6 {[%clk 0:00:19]} 32. Nxh6+ {[%clk 0:00:04]}  Kg7 {[%clk 0:00:18]} 33. Ndf5+ {[%clk 0:00:04]}  Bxf5 {[%clk 0:00:18]} 34. Nxf5+ {[%clk 0:00:05]}  Kg8 {[%clk 0:00:18]} 35. Bd4 {[%clk 0:00:04]}  Rd8 {[%clk 0:00:16]} 36. Nh6+ {[%clk 0:00:04]}  Kf8 {[%clk 0:00:17]} 37. Qa3+ {[%clk 0:00:03]}  Ne7 {[%clk 0:00:14]} 38. Nf5 {[%clk 0:00:04]}  Qxe4 {[%clk 0:00:10]} 39. Bc5 {[%clk 0:00:04]}  f6 {[%clk 0:00:10]} 40. Bxe7+ {[%clk 0:00:04]}  Rxe7 {[%clk 0:00:10]} 41. Nxe7 {[%clk 0:00:04]}  Qxe7 {[%clk 0:00:10]} 42. Qxa6 {[%clk 0:00:05]}  Rd6 {[%clk 0:00:06]} 43. Qb5 {[%clk 0:00:05]}  Qf7 {[%clk 0:00:04]} 44. Qb8+ {[%clk 0:00:05]}  Ke7 {[%clk 0:00:04]} 45. Rc7+ {[%clk 0:00:05]}  Rd7 {[%clk 0:00:04]} 46. Rxd7+ {[%clk 0:00:06]}  Kxd7 {[%clk 0:00:05]} 47. Qb7+ {[%clk 0:00:06]}  Ke6 {[%clk 0:00:06]} 48. Qxf7+ {[%clk 0:00:07]}  Kxf7 {[%clk 0:00:07]} 49. Kh2 {[%clk 0:00:08]}  Kg6 {[%clk 0:00:07]} 50. Kh3 {[%clk 0:00:09]}  Kg5 {[%clk 0:00:06]} 51. a4 {[%clk 0:00:09]} 1-0


[Site "https://www.chess.com"]

[Event "Titled Tuesday Blitz November 14 Early 2023"]
[White "Ovetchkin, Roman"]
[Black "Samsonkin, Artiom"]
[WhiteFideId "4119991"]
[BlackFideId "13503111"]
[WhiteElo "2670"]
[BlackElo "2822"]
[Result "0-1"]
[Round "7"]
[TimeControl "180+1"]
[Date "2023.11.14"]
[WhiteClock "0:00:14"]
[BlackClock "0:00:31"]
[Board "40"]

1. d4 {[%clk 0:03:00]}  Nf6 {[%clk 0:02:58]} 2. c4 {[%clk 0:03:00]}  e6 {[%clk 0:02:59]} 3. g3 {[%clk 0:03:00]}  Bb4+ {[%clk 0:02:58]} 4. Bd2 {[%clk 0:03:00]}  Qe7 {[%clk 0:02:58]} 5. Bg2 {[%clk 0:03:00]}  Nc6 {[%clk 0:02:59]} 6. e3 {[%clk 0:03:00]}  e5 {[%clk 0:02:56]} 7. d5 {[%clk 0:02:59]}  Bxd2+ {[%clk 0:02:54]} 8. Qxd2 {[%clk 0:03:00]}  Nb8 {[%clk 0:02:55]} 9. d6 {[%clk 0:02:59]}  cxd6 {[%clk 0:02:55]} 10. Nc3 {[%clk 0:02:58]}  d5 {[%clk 0:02:56]} 11. Nxd5 {[%clk 0:02:22]}  Nxd5 {[%clk 0:02:53]} 12. Bxd5 {[%clk 0:02:22]}  d6 {[%clk 0:02:53]} 13. Ne2 {[%clk 0:02:22]}  O-O {[%clk 0:02:40]} 14. O-O {[%clk 0:02:19]}  Nc6 {[%clk 0:02:37]} 15. Nc3 {[%clk 0:02:17]}  Bh3 {[%clk 0:02:29]} 16. Rfe1 {[%clk 0:02:09]}  Rad8 {[%clk 0:02:27]} 17. Rad1 {[%clk 0:02:04]}  Kh8 {[%clk 0:02:26]} 18. Ne4 {[%clk 0:01:38]}  f5 {[%clk 0:02:22]} 19. Bxc6 {[%clk 0:01:38]}  bxc6 {[%clk 0:02:16]} 20. Nxd6 {[%clk 0:01:37]}  c5 {[%clk 0:02:00]} 21. Nf7+ {[%clk 0:01:35]}  Qxf7 {[%clk 0:01:54]} 22. Qxd8 {[%clk 0:01:35]}  h6 {[%clk 0:01:50]} 23. Qd5 {[%clk 0:01:26]}  Qh5 {[%clk 0:01:50]} 24. f3 {[%clk 0:01:22]}  e4 {[%clk 0:01:35]} 25. f4 {[%clk 0:01:20]}  Kh7 {[%clk 0:01:09]} 26. Qxc5 {[%clk 0:01:18]}  Rf6 {[%clk 0:01:10]} 27. Rd2 {[%clk 0:01:17]}  Rg6 {[%clk 0:01:01]} 28. Qxa7 {[%clk 0:01:03]}  Qf3 {[%clk 0:00:53]} 29. Rde2 {[%clk 0:00:49]}  Rxg3+ {[%clk 0:00:33]} 30. hxg3 {[%clk 0:00:48]}  Qxg3+ {[%clk 0:00:34]} 31. Kh1 {[%clk 0:00:48]}  Bg4 {[%clk 0:00:35]} 32. Rf1 {[%clk 0:00:14]}  Bxe2 {[%clk 0:00:31]} 0-1


[Site "https://www.chess.com"]

[Event "Titled Tuesday Blitz November 14 Early 2023"]
[White "Bao, Qilin"]
[Black "Dragun, Kamil"]
[WhiteFideId "8605750"]
[BlackFideId "1134167"]
[WhiteElo "2657"]
[BlackElo "2818"]
[Result "0-1"]
[Round "7"]
[TimeControl "180+1"]
[Date "2023.11.14"]
[WhiteClock "0:00:19"]
[BlackClock "0:00:14"]
[Board "41"]

1. d4 {[%clk 0:03:00]}  Nf6 {[%clk 0:02:57]} 2. Bf4 {[%clk 0:02:59]}  e6 {[%clk 0:02:57]} 3. e3 {[%clk 0:02:58]}  d5 {[%clk 0:02:57]} 4. Bd3 {[%clk 0:02:55]}  Bd6 {[%clk 0:02:57]} 5. Bxd6 {[%clk 0:02:54]}  Qxd6 {[%clk 0:02:54]} 6. c3 {[%clk 0:02:54]}  c5 {[%clk 0:02:53]} 7. Nf3 {[%clk 0:02:52]}  Nc6 {[%clk 0:02:53]} 8. O-O {[%clk 0:02:52]}  O-O {[%clk 0:02:52]} 9. Nbd2 {[%clk 0:02:50]}  e5 {[%clk 0:02:47]} 10. dxe5 {[%clk 0:02:51]}  Nxe5 {[%clk 0:02:48]} 11. Nxe5 {[%clk 0:02:51]}  Qxe5 {[%clk 0:02:49]} 12. a4 {[%clk 0:02:49]}  Qe7 {[%clk 0:02:41]} 13. a5 {[%clk 0:02:48]}  Bg4 {[%clk 0:02:35]} 14. Qa4 {[%clk 0:02:48]}  Rad8 {[%clk 0:02:33]} 15. Rfe1 {[%clk 0:02:46]}  g6 {[%clk 0:02:21]} 16. Qf4 {[%clk 0:02:45]}  Kg7 {[%clk 0:02:19]} 17. h3 {[%clk 0:02:39]}  Bd7 {[%clk 0:02:19]} 18. Nf3 {[%clk 0:02:35]}  Rfe8 {[%clk 0:02:19]} 19. Qc7 {[%clk 0:02:27]}  Bc6 {[%clk 0:02:03]} 20. Qxe7 {[%clk 0:02:27]}  Rxe7 {[%clk 0:02:04]} 21. Rad1 {[%clk 0:02:25]}  Ne4 {[%clk 0:01:52]} 22. Bxe4 {[%clk 0:02:10]}  Rxe4 {[%clk 0:01:53]} 23. Nd2 {[%clk 0:02:10]}  Ra4 {[%clk 0:01:50]} 24. Ra1 {[%clk 0:02:10]}  Rxa1 {[%clk 0:01:32]} 25. Rxa1 {[%clk 0:02:10]}  d4 {[%clk 0:01:27]} 26. exd4 {[%clk 0:02:10]}  cxd4 {[%clk 0:01:28]} 27. c4 {[%clk 0:02:10]}  Re8 {[%clk 0:01:25]} 28. Kf1 {[%clk 0:02:09]}  Kf6 {[%clk 0:01:16]} 29. b4 {[%clk 0:02:08]}  a6 {[%clk 0:01:07]} 30. Rb1 {[%clk 0:02:07]}  d3 {[%clk 0:01:00]} 31. Rb3 {[%clk 0:01:59]}  Rd8 {[%clk 0:00:58]} 32. b5 {[%clk 0:01:58]}  axb5 {[%clk 0:00:59]} 33. cxb5 {[%clk 0:01:57]}  Bd5 {[%clk 0:00:58]} 34. Rc3 {[%clk 0:01:57]}  Ke5 {[%clk 0:00:57]} 35. Rxd3 {[%clk 0:01:40]}  Bxg2+ {[%clk 0:00:55]} 36. Ke2 {[%clk 0:01:41]}  Rxd3 {[%clk 0:00:50]} 37. Kxd3 {[%clk 0:01:42]}  Bxh3 {[%clk 0:00:50]} 38. a6 {[%clk 0:01:36]}  bxa6 {[%clk 0:00:51]} 39. bxa6 {[%clk 0:01:36]}  Bc8 {[%clk 0:00:47]} 40. Nc4+ {[%clk 0:01:34]}  Kf4 {[%clk 0:00:43]} 41. a7 {[%clk 0:01:32]}  Bb7 {[%clk 0:00:43]} 42. Ke2 {[%clk 0:01:31]}  h5 {[%clk 0:00:28]} 43. Nb6 {[%clk 0:01:23]}  h4 {[%clk 0:00:28]} 44. a8=Q {[%clk 0:01:18]}  Bxa8 {[%clk 0:00:29]} 45. Nxa8 {[%clk 0:01:19]}  h3 {[%clk 0:00:30]} 46. Kf1 {[%clk 0:01:19]}  Kf3 {[%clk 0:00:31]} 47. Kg1 {[%clk 0:01:19]}  g5 {[%clk 0:00:31]} 48. Nc7 {[%clk 0:01:03]}  f5 {[%clk 0:00:30]} 49. Ne6 {[%clk 0:00:56]}  g4 {[%clk 0:00:27]} 50. Ng5+ {[%clk 0:00:55]}  Ke2 {[%clk 0:00:27]} 51. f3 {[%clk 0:00:46]}  h2+ {[%clk 0:00:14]} 52. Kxh2 {[%clk 0:00:31]}  gxf3 {[%clk 0:00:15]} 53. Nh3 {[%clk 0:00:25]}  f2 {[%clk 0:00:15]} 54. Nf4+ {[%clk 0:00:19]}  Kf3 {[%clk 0:00:14]} 0-1


[Site "https://www.chess.com"]